[Event "*** SCC Grand Prix: Titled Tuesday Blitz"]
[Site "Chess.com"]
[Date "2020.09.08"]
[Round "7"]
[White "el-roedor"]
[Black "PowerThinking2650"]
[Result "1-0"]
[WhiteElo "2558"]
[BlackElo "2393"]
[TimeControl "180+1"]
[EndTime "11:18:55 PDT"]
[Termination "el-roedor won by resignation"]

1. d4 {[%clk 0:03:00.9]} 1... Nf6 {[%clk 0:02:30.9]} 2. c4 {[%clk 0:03:00.8]}
2... g6 {[%clk 0:02:30.6]} 3. Nc3 {[%clk 0:03:00.6]} 3... Bg7 {[%clk 0:02:30.9]}
4. e4 {[%clk 0:03:00.8]} 4... d6 {[%clk 0:02:31.6]} 5. f3 {[%clk 0:03:01.2]}
5... O-O {[%clk 0:02:31.5]} 6. Bg5 {[%clk 0:03:01.7]} 6... c5 {[%clk 0:02:31.2]}
7. d5 {[%clk 0:03:01.8]} 7... Nbd7 {[%clk 0:02:29.8]} 8. Nh3 {[%clk 0:03:01.3]}
8... Ne5 {[%clk 0:02:29.7]} 9. Nf2 {[%clk 0:03:01.3]} 9... Qa5 {[%clk 0:02:30]}
10. Qd2 {[%clk 0:02:48.7]} 10... Qb4 {[%clk 0:02:28.2]} 11. b3 {[%clk
0:02:22.6]} 11... h6 {[%clk 0:02:10.5]} 12. Bxf6 {[%clk 0:02:03.6]} 12... Bxf6
{[%clk 0:02:08.6]} 13. Rc1 {[%clk 0:02:04.1]} 13... Bg7 {[%clk 0:02:02.7]} 14.
Be2 {[%clk 0:02:02.6]} 14... f5 {[%clk 0:02:02.5]} 15. exf5 {[%clk 0:01:59.2]}
15... gxf5 {[%clk 0:01:53.7]} 16. O-O {[%clk 0:01:50.8]} 16... Bd7 {[%clk
0:01:33.8]} 17. Nd3 {[%clk 0:01:21.2]} 17... Nxd3 {[%clk 0:01:30.8]} 18. Bxd3
{[%clk 0:01:22.1]} 18... e5 {[%clk 0:01:14.9]} 19. dxe6 {[%clk 0:01:20.3]} 19...
Bxe6 {[%clk 0:01:15.8]} 20. Rc2 {[%clk 0:01:03.5]} 20... Rae8 {[%clk 0:01:10.4]}
21. Nb5 {[%clk 0:01:02.9]} 21... Qxd2 {[%clk 0:00:52.7]} 22. Rxd2 {[%clk
0:01:03.8]} 22... Rd8 {[%clk 0:00:46.5]} 23. Nxa7 {[%clk 0:00:47.3]} 23... Bc3
{[%clk 0:00:46]} 24. Rdd1 {[%clk 0:00:42.5]} 24... Bd4+ {[%clk 0:00:20]} 25. Kh1
{[%clk 0:00:42]} 25... f4 {[%clk 0:00:20.5]} 26. Nb5 {[%clk 0:00:39.3]} 26...
Be3 {[%clk 0:00:20.4]} 27. Be4 {[%clk 0:00:36]} 27... Ra8 {[%clk 0:00:13.2]} 28.
a4 {[%clk 0:00:33.9]} 28... Rad8 {[%clk 0:00:12.8]} 29. Bxb7 {[%clk 0:00:27.6]}
29... d5 {[%clk 0:00:12.2]} 30. Bxd5 {[%clk 0:00:27.1]} 30... Bxd5 {[%clk
0:00:11.9]} 31. Rxd5 {[%clk 0:00:27.7]} 31... Rxd5 {[%clk 0:00:11.6]} 32. cxd5
{[%clk 0:00:28]} 32... Rd8 {[%clk 0:00:11.7]} 33. Rd1 {[%clk 0:00:28.1]} 33...
Kf7 {[%clk 0:00:12.3]} 34. g3 {[%clk 0:00:27.1]} 34... Kf6 {[%clk 0:00:12.3]}
35. Kg2 {[%clk 0:00:26.8]} 35... Ke5 {[%clk 0:00:12.2]} 36. d6 {[%clk
0:00:26.5]} 36... Bd4 {[%clk 0:00:11.8]} 37. Re1+ {[%clk 0:00:24.2]} 37... Kd5
{[%clk 0:00:12.1]} 38. gxf4 {[%clk 0:00:18.4]} 38... Rg8+ {[%clk 0:00:11.6]} 39.
Kh3 {[%clk 0:00:18.6]} 39... c4 {[%clk 0:00:10.7]} 40. bxc4+ {[%clk 0:00:18.1]}
40... Kxc4 {[%clk 0:00:10.9]} 41. Nxd4 {[%clk 0:00:14.9]} 41... Kxd4 {[%clk
0:00:10.9]} 42. d7 {[%clk 0:00:14.8]} 42... Rd8 {[%clk 0:00:09.2]} 43. Rd1+
{[%clk 0:00:14.7]} 43... Ke3 {[%clk 0:00:09.5]} 44. Kg4 {[%clk 0:00:14.3]} 44...
Rh8 {[%clk 0:00:09.3]} 1-0

[Event "*** SCC Grand Prix: Titled Tuesday Blitz"]
[Site "Chess.com"]
[Date "2020.09.08"]
[Round "7"]
[White "Happy1712Drummer"]
[Black "Mbneu"]
[Result "1/2-1/2"]
[WhiteElo "2406"]
[BlackElo "2272"]
[TimeControl "180+1"]
[EndTime "11:18:55 PDT"]
[Termination "Game drawn by repetition"]

1. d4 {[%clk 0:03:00.9]} 1... Nf6 {[%clk 0:02:59.2]} 2. c4 {[%clk 0:02:53.9]}
2... c5 {[%clk 0:02:59]} 3. d5 {[%clk 0:02:47.5]} 3... e6 {[%clk 0:02:59]} 4.
Nc3 {[%clk 0:02:40.6]} 4... exd5 {[%clk 0:02:59.3]} 5. cxd5 {[%clk 0:02:41.1]}
5... d6 {[%clk 0:02:58.6]} 6. Nf3 {[%clk 0:02:34.1]} 6... g6 {[%clk 0:02:58.8]}
7. Bf4 {[%clk 0:02:28.9]} 7... Bg7 {[%clk 0:02:59.2]} 8. Qa4+ {[%clk 0:02:24.7]}
8... Bd7 {[%clk 0:02:59.5]} 9. Qb3 {[%clk 0:02:20.9]} 9... b5 {[%clk 0:02:59.9]}
10. Bxd6 {[%clk 0:02:12.8]} 10... Qb6 {[%clk 0:02:58.2]} 11. Be5 {[%clk
0:02:09.2]} 11... O-O {[%clk 0:02:58.3]} 12. e3 {[%clk 0:02:05.1]} 12... c4
{[%clk 0:02:58.2]} 13. Qd1 {[%clk 0:02:00.3]} 13... b4 {[%clk 0:02:58.2]} 14.
Ne2 {[%clk 0:01:47.4]} 14... Bb5 {[%clk 0:02:41.5]} 15. Ned4 {[%clk 0:01:42.5]}
15... Nbd7 {[%clk 0:02:40]} 16. Nxb5 {[%clk 0:01:38.1]} 16... Qxb5 {[%clk
0:02:39.2]} 17. Bd4 {[%clk 0:01:35.2]} 17... Qxd5 {[%clk 0:02:29.3]} 18. Be2
{[%clk 0:01:34.5]} 18... a5 {[%clk 0:02:24]} 19. O-O {[%clk 0:01:30.6]} 19...
Rac8 {[%clk 0:02:22.9]} 20. Nd2 {[%clk 0:01:17.3]} 20... c3 {[%clk 0:01:52.4]}
21. Bf3 {[%clk 0:01:15]} 21... Qf5 {[%clk 0:01:42.8]} 22. bxc3 {[%clk
0:01:12.1]} 22... bxc3 {[%clk 0:01:41.6]} 23. Nb3 {[%clk 0:00:50.6]} 23... Ne5
{[%clk 0:01:40]} 24. Be2 {[%clk 0:00:45.6]} 24... c2 {[%clk 0:01:32.5]} 25. Qd2
{[%clk 0:00:39.1]} 25... Ne4 {[%clk 0:01:28.6]} 26. Qxa5 {[%clk 0:00:36.1]}
26... Nc4 {[%clk 0:01:18.9]} 27. Qxf5 {[%clk 0:00:33]} 27... gxf5 {[%clk
0:01:17.9]} 28. Rfc1 {[%clk 0:00:25.2]} 28... Na3 {[%clk 0:01:07.8]} 29. Bxg7
{[%clk 0:00:22.3]} 29... Kxg7 {[%clk 0:01:05.6]} 30. Nd4 {[%clk 0:00:22.8]}
30... Kf6 {[%clk 0:00:57.8]} 31. f3 {[%clk 0:00:19.9]} 31... Nc3 {[%clk
0:00:56.3]} 32. Bd3 {[%clk 0:00:19.8]} 32... Nd1 {[%clk 0:00:52.9]} 33. Bxf5
{[%clk 0:00:17.4]} 33... Nxe3 {[%clk 0:00:51.3]} 34. Bxc8 {[%clk 0:00:16.2]}
34... Rxc8 {[%clk 0:00:51.6]} 35. Kf2 {[%clk 0:00:16.3]} 35... Nd5 {[%clk
0:00:31.5]} 36. Nb3 {[%clk 0:00:14.9]} 36... Ke5 {[%clk 0:00:28.7]} 37. Ke2
{[%clk 0:00:14.6]} 37... Nf4+ {[%clk 0:00:26.4]} 38. Kf1 {[%clk 0:00:12.7]}
38... Kd5 {[%clk 0:00:25.3]} 39. g3 {[%clk 0:00:12]} 39... Nd3 {[%clk
0:00:24.9]} 40. Ke2 {[%clk 0:00:12.7]} 40... Nxc1+ {[%clk 0:00:24.2]} 41. Rxc1
{[%clk 0:00:13.6]} 41... Rc3 {[%clk 0:00:20.3]} 42. Na1 {[%clk 0:00:11.9]} 42...
Kc4 {[%clk 0:00:18.8]} 43. Kd2 {[%clk 0:00:11.9]} 43... Rd3+ {[%clk 0:00:18.9]}
44. Ke2 {[%clk 0:00:11]} 44... Rc3 {[%clk 0:00:19.4]} 45. Kd2 {[%clk 0:00:11.1]}
45... Rd3+ {[%clk 0:00:19.2]} 46. Ke2 {[%clk 0:00:11.1]} 46... Rc3 {[%clk
0:00:19.1]} 1/2-1/2

[Event "*** SCC Grand Prix: Titled Tuesday Blitz"]
[Site "Chess.com"]
[Date "2020.09.08"]
[Round "7"]
[White "HrvojeZagreb"]
[Black "elegant285"]
[Result "0-1"]
[WhiteElo "2162"]
[BlackElo "2350"]
[TimeControl "180+1"]
[EndTime "11:18:55 PDT"]
[Termination "elegant285 won on time"]

1. d4 {[%clk 0:03:00.9]} 1... f5 {[%clk 0:02:58.8]} 2. Bg5 {[%clk 0:02:59.6]}
2... Nf6 {[%clk 0:02:58.4]} 3. Bxf6 {[%clk 0:02:59.8]} 3... exf6 {[%clk
0:02:57.5]} 4. e3 {[%clk 0:02:57.1]} 4... d5 {[%clk 0:02:57.4]} 5. c4 {[%clk
0:02:57]} 5... c6 {[%clk 0:02:57.3]} 6. Nc3 {[%clk 0:02:53.8]} 6... Bb4 {[%clk
0:02:43.2]} 7. Qb3 {[%clk 0:02:50]} 7... Bxc3+ {[%clk 0:02:39.6]} 8. bxc3 {[%clk
0:02:50.9]} 8... Qa5 {[%clk 0:02:29.2]} 9. Ne2 {[%clk 0:02:45.4]} 9... O-O
{[%clk 0:02:18.1]} 10. cxd5 {[%clk 0:02:34]} 10... Qxd5 {[%clk 0:02:16.7]} 11.
c4 {[%clk 0:02:29.4]} 11... Qa5+ {[%clk 0:02:13.2]} 12. Nc3 {[%clk 0:02:25]}
12... Be6 {[%clk 0:02:06.7]} 13. Bd3 {[%clk 0:02:20.6]} 13... Na6 {[%clk
0:02:03.1]} 14. O-O {[%clk 0:02:16.8]} 14... Nb4 {[%clk 0:02:03]} 15. Bb1 {[%clk
0:02:11]} 15... b5 {[%clk 0:01:59]} 16. a3 {[%clk 0:02:02.7]} 16... Na6 {[%clk
0:01:48.4]} 17. Bd3 {[%clk 0:01:42.1]} 17... Rab8 {[%clk 0:01:38.8]} 18. Qc2
{[%clk 0:01:38.8]} 18... bxc4 {[%clk 0:01:35.4]} 19. Be2 {[%clk 0:01:25.1]}
19... Rb3 {[%clk 0:01:34.7]} 20. Nb1 {[%clk 0:01:13]} 20... c3 {[%clk
0:01:10.1]} 21. Rc1 {[%clk 0:00:57.3]} 21... Rfb8 {[%clk 0:00:58.3]} 22. Nxc3
{[%clk 0:00:48.6]} 22... Rxa3 {[%clk 0:00:58.3]} 23. Rxa3 {[%clk 0:00:36]} 23...
Qxa3 {[%clk 0:00:59.2]} 24. Rb1 {[%clk 0:00:16.7]} 24... Rxb1+ {[%clk
0:00:47.2]} 25. Qxb1 {[%clk 0:00:16.5]} 25... Qxc3 {[%clk 0:00:38.9]} 26. Bxa6
{[%clk 0:00:16.1]} 26... Qb3 {[%clk 0:00:39.1]} 27. Qc1 {[%clk 0:00:11.7]} 27...
Qb6 {[%clk 0:00:35.6]} 28. Be2 {[%clk 0:00:10.2]} 28... a5 {[%clk 0:00:34.4]}
29. Bf3 {[%clk 0:00:09.3]} 29... Bd7 {[%clk 0:00:25.2]} 30. h4 {[%clk
0:00:08.8]} 30... h6 {[%clk 0:00:22.5]} 31. Qc4+ {[%clk 0:00:08.5]} 31... Kh7
{[%clk 0:00:20.4]} 32. Qf7 {[%clk 0:00:04.7]} 32... Qb1+ {[%clk 0:00:20.2]} 33.
Kh2 {[%clk 0:00:04.3]} 33... Qb8+ {[%clk 0:00:20.7]} 34. g3 {[%clk 0:00:04]}
34... Qe8 {[%clk 0:00:21.2]} 35. Qa2 {[%clk 0:00:03]} 35... Qd8 {[%clk
0:00:17.7]} 36. Bh5 {[%clk 0:00:01.9]} 36... c5 {[%clk 0:00:16.1]} 37. Qf7
{[%clk 0:00:01.5]} 37... Be8 {[%clk 0:00:15.5]} 0-1

[Event "*** SCC Grand Prix: Titled Tuesday Blitz"]
[Site "Chess.com"]
[Date "2020.09.08"]
[Round "7"]
[White "denispopov"]
[Black "eCztery"]
[Result "1-0"]
[WhiteElo "1974"]
[BlackElo "2296"]
[TimeControl "180+1"]
[EndTime "11:18:56 PDT"]
[Termination "denispopov won by resignation"]

1. e4 {[%clk 0:01:57.2]} 1... c5 {[%clk 0:02:51.2]} 2. Nc3 {[%clk 0:01:56.8]}
2... Nc6 {[%clk 0:02:50.9]} 3. Bb5 {[%clk 0:01:56.3]} 3... g6 {[%clk 0:02:46.5]}
4. Bxc6 {[%clk 0:01:55.7]} 4... dxc6 {[%clk 0:02:47.4]} 5. Nge2 {[%clk
0:01:56.1]} 5... Bg7 {[%clk 0:02:45]} 6. O-O {[%clk 0:01:56.5]} 6... e5 {[%clk
0:02:43.5]} 7. d3 {[%clk 0:01:56.2]} 7... Ne7 {[%clk 0:02:42.6]} 8. Be3 {[%clk
0:01:56.4]} 8... b6 {[%clk 0:02:42.4]} 9. a4 {[%clk 0:01:56.2]} 9... Rb8 {[%clk
0:02:35.1]} 10. a5 {[%clk 0:01:53.9]} 10... O-O {[%clk 0:02:35.7]} 11. axb6
{[%clk 0:01:51.8]} 11... axb6 {[%clk 0:02:36.6]} 12. Ra7 {[%clk 0:01:51.2]}
12... Bb7 {[%clk 0:02:22.1]} 13. Qa1 {[%clk 0:01:46.9]} 13... f5 {[%clk
0:02:04.4]} 14. Qa2+ {[%clk 0:01:42.2]} 14... Kh8 {[%clk 0:02:04.1]} 15. Qe6
{[%clk 0:01:40.8]} 15... f4 {[%clk 0:00:57.1]} 16. Bd2 {[%clk 0:01:38.8]} 16...
f3 {[%clk 0:00:49.7]} 17. gxf3 {[%clk 0:01:36]} 17... Ng8 {[%clk 0:00:42.1]} 18.
f4 {[%clk 0:01:32.1]} 18... Bc8 {[%clk 0:00:36.6]} 19. Qxc6 {[%clk 0:01:27.9]}
19... Bh3 {[%clk 0:00:31.6]} 20. Qc7 {[%clk 0:01:15.1]} 20... Qxc7 {[%clk
0:00:14.8]} 21. Rxc7 {[%clk 0:01:16]} 21... Bxf1 {[%clk 0:00:15.1]} 22. Kxf1
{[%clk 0:01:16.2]} 22... exf4 {[%clk 0:00:15.9]} 23. Nxf4 {[%clk 0:01:07.2]}
23... Be5 {[%clk 0:00:13.8]} 24. Ne6 {[%clk 0:01:03.6]} 24... Bxc7 {[%clk
0:00:13.9]} 25. Nxc7 {[%clk 0:01:01.4]} 25... Nf6 {[%clk 0:00:12.5]} 26. Ne6
{[%clk 0:01:00.6]} 26... Rf7 {[%clk 0:00:12.3]} 27. Ng5 {[%clk 0:00:59.5]} 27...
Ra7 {[%clk 0:00:11.3]} 28. Bf4 {[%clk 0:00:58.9]} 28... Kg8 {[%clk 0:00:10.2]}
29. Bxb8 {[%clk 0:00:58.4]} 29... Ra8 {[%clk 0:00:07.9]} 30. Be5 {[%clk
0:00:57.7]} 30... Ng4 {[%clk 0:00:07.3]} 31. Bg3 {[%clk 0:00:57.8]} 31... Ra1+
{[%clk 0:00:07]} 32. Ke2 {[%clk 0:00:57.4]} 32... h6 {[%clk 0:00:06.8]} 33. Ne6
{[%clk 0:00:56.7]} 33... h5 {[%clk 0:00:07]} 34. Nf4 {[%clk 0:00:55.6]} 34...
Kf7 {[%clk 0:00:06.8]} 35. Ncd5 {[%clk 0:00:54.4]} 35... Nf6 {[%clk 0:00:06.6]}
36. Nxf6 {[%clk 0:00:53]} 36... Kxf6 {[%clk 0:00:07.5]} 37. Nd5+ {[%clk
0:00:52.6]} 37... Kf7 {[%clk 0:00:07.8]} 38. Nxb6 {[%clk 0:00:51.7]} 38... g5
{[%clk 0:00:08.7]} 39. h4 {[%clk 0:00:51.1]} 39... gxh4 {[%clk 0:00:08.3]} 40.
Bxh4 {[%clk 0:00:52]} 40... Rh1 {[%clk 0:00:08.5]} 41. Bg3 {[%clk 0:00:49.8]}
41... h4 {[%clk 0:00:09.4]} 42. Bf4 {[%clk 0:00:50.3]} 42... h3 {[%clk
0:00:10.3]} 43. Kf3 {[%clk 0:00:50.7]} 43... Kg6 {[%clk 0:00:08.6]} 44. Kg3
{[%clk 0:00:50.6]} 44... Kh5 {[%clk 0:00:07.7]} 45. Nd5 {[%clk 0:00:50]} 45...
h2 {[%clk 0:00:06.3]} 46. Kg2 {[%clk 0:00:49.9]} 46... Re1 {[%clk 0:00:05.6]}
47. Bxh2 {[%clk 0:00:49.2]} 47... Kg4 {[%clk 0:00:06.5]} 48. Ne3+ {[%clk
0:00:47.8]} 48... Kh4 {[%clk 0:00:06.9]} 49. Bg3+ {[%clk 0:00:47.5]} 49... Kg5
{[%clk 0:00:06.1]} 50. Bd6 {[%clk 0:00:47.1]} 50... c4 {[%clk 0:00:04.5]} 51.
Nxc4 {[%clk 0:00:46.5]} 51... Kh4 {[%clk 0:00:05.2]} 52. Bg3+ {[%clk 0:00:45.9]}
52... Kg4 {[%clk 0:00:05.1]} 53. f3+ {[%clk 0:00:45.6]} 53... Kh5 {[%clk
0:00:05.4]} 54. Bxe1 {[%clk 0:00:46.5]} 1-0

[Event "*** SCC Grand Prix: Titled Tuesday Blitz"]
[Site "Chess.com"]
[Date "2020.09.08"]
[Round "7"]
[White "dragos420"]
[Black "Taron_Shagbazyan"]
[Result "0-1"]
[WhiteElo "2500"]
[BlackElo "2682"]
[TimeControl "180+1"]
[EndTime "11:18:57 PDT"]
[Termination "Taron_Shagbazyan won by resignation"]

1. e4 {[%clk 0:03:00.9]} 1... e5 {[%clk 0:02:59.7]} 2. Nf3 {[%clk 0:02:59.1]}
2... Nc6 {[%clk 0:03:00.3]} 3. Bc4 {[%clk 0:02:59.3]} 3... Bc5 {[%clk
0:02:58.5]} 4. d3 {[%clk 0:02:59]} 4... d6 {[%clk 0:02:58.1]} 5. O-O {[%clk
0:02:58.7]} 5... Nf6 {[%clk 0:02:58.1]} 6. c3 {[%clk 0:02:58.4]} 6... O-O {[%clk
0:02:53.4]} 7. Bb3 {[%clk 0:02:47.9]} 7... h6 {[%clk 0:02:52.5]} 8. Nbd2 {[%clk
0:02:42.8]} 8... a6 {[%clk 0:02:52.3]} 9. h3 {[%clk 0:02:42.1]} 9... Kh8 {[%clk
0:02:50.7]} 10. Re1 {[%clk 0:02:37.9]} 10... Ng8 {[%clk 0:02:50.3]} 11. Nf1
{[%clk 0:02:35.1]} 11... f5 {[%clk 0:02:42.7]} 12. exf5 {[%clk 0:02:17]} 12...
Bxf5 {[%clk 0:02:41.2]} 13. Ng3 {[%clk 0:02:17.9]} 13... Bh7 {[%clk 0:02:35.9]}
14. Be3 {[%clk 0:02:14.7]} 14... Bxe3 {[%clk 0:02:31.6]} 15. Rxe3 {[%clk
0:02:15.6]} 15... Nge7 {[%clk 0:02:24.5]} 16. d4 {[%clk 0:02:10.2]} 16... Ng6
{[%clk 0:02:21.5]} 17. Bc2 {[%clk 0:02:05.5]} 17... exd4 {[%clk 0:02:16.3]} 18.
Nxd4 {[%clk 0:02:04.1]} 18... Nce5 {[%clk 0:02:10.9]} 19. Ne6 {[%clk 0:02:01.5]}
19... Qf6 {[%clk 0:02:11.1]} 20. Nxf8 {[%clk 0:02:01.4]} 20... Rxf8 {[%clk
0:02:12]} 21. Ne4 {[%clk 0:01:50.4]} 21... Qh4 {[%clk 0:02:07.8]} 22. Qd4 {[%clk
0:01:36.2]} 22... Nf4 {[%clk 0:02:02.6]} 23. Ng3 {[%clk 0:01:34]} 23... Bxc2
{[%clk 0:01:53.3]} 24. Rae1 {[%clk 0:01:30.1]} 24... Bg6 {[%clk 0:01:49.6]} 25.
Qb4 {[%clk 0:01:07.2]} 25... Qf6 {[%clk 0:01:31.2]} 26. Rf1 {[%clk 0:00:50.9]}
26... b6 {[%clk 0:01:29.2]} 27. Qd4 {[%clk 0:00:47.6]} 27... a5 {[%clk
0:01:27.7]} 28. Ne4 {[%clk 0:00:44.9]} 28... Bxe4 {[%clk 0:01:16.1]} 29. Qxe4
{[%clk 0:00:42.9]} 29... Qg5 {[%clk 0:01:00.6]} 30. Rg3 {[%clk 0:00:39.5]} 30...
Qh4 {[%clk 0:01:00.6]} 31. Re1 {[%clk 0:00:35.1]} 31... Qf6 {[%clk 0:00:59.7]}
32. Rf1 {[%clk 0:00:34.4]} 32... Nfd3 {[%clk 0:00:58]} 33. Qe2 {[%clk
0:00:21.3]} 33... Nc5 {[%clk 0:00:54.7]} 34. b4 {[%clk 0:00:18.4]} 34... axb4
{[%clk 0:00:52.1]} 35. cxb4 {[%clk 0:00:19.3]} 35... Ne6 {[%clk 0:00:52.7]} 36.
Qe4 {[%clk 0:00:17.9]} 36... Nf4 {[%clk 0:00:50.5]} 37. a4 {[%clk 0:00:16]}
37... c5 {[%clk 0:00:50.3]} 38. a5 {[%clk 0:00:15.2]} 38... d5 {[%clk
0:00:49.6]} 39. Qe3 {[%clk 0:00:11.5]} 39... d4 {[%clk 0:00:48]} 40. Qe4 {[%clk
0:00:11.5]} 40... d3 {[%clk 0:00:48.6]} 41. axb6 {[%clk 0:00:10.7]} 41... Ne2+
{[%clk 0:00:48.2]} 42. Kh2 {[%clk 0:00:07.2]} 42... Nxg3 {[%clk 0:00:48.5]} 43.
Kxg3 {[%clk 0:00:08.1]} 43... d2 {[%clk 0:00:48.4]} 44. bxc5 {[%clk 0:00:05.8]}
44... Rd8 {[%clk 0:00:33.9]} 45. f4 {[%clk 0:00:05]} 45... Nd3 {[%clk
0:00:31.8]} 46. Rd1 {[%clk 0:00:04.1]} 46... Nxc5 {[%clk 0:00:30.2]} 47. Qe3
{[%clk 0:00:03.3]} 47... Rd3 {[%clk 0:00:28.9]} 0-1

[Event "*** SCC Grand Prix: Titled Tuesday Blitz"]
[Site "Chess.com"]
[Date "2020.09.08"]
[Round "7"]
[White "aa175"]
[Black "suyu28"]
[Result "0-1"]
[WhiteElo "2392"]
[BlackElo "2557"]
[TimeControl "180+1"]
[EndTime "11:18:58 PDT"]
[Termination "suyu28 won by checkmate"]

1. d4 {[%clk 0:03:00.9]} 1... Nf6 {[%clk 0:02:53.4]} 2. Nf3 {[%clk 0:03:00.2]}
2... g6 {[%clk 0:02:51.5]} 3. Bf4 {[%clk 0:03:00.3]} 3... Bg7 {[%clk 0:02:46.9]}
4. e3 {[%clk 0:03:00.8]} 4... O-O {[%clk 0:02:46.6]} 5. Be2 {[%clk 0:03:00.9]}
5... d6 {[%clk 0:02:46.5]} 6. O-O {[%clk 0:03:01.5]} 6... b6 {[%clk 0:02:47]} 7.
c4 {[%clk 0:03:02.1]} 7... Bb7 {[%clk 0:02:47.4]} 8. Nc3 {[%clk 0:03:02.6]} 8...
Nbd7 {[%clk 0:02:47.9]} 9. Qc2 {[%clk 0:02:58.6]} 9... Nh5 {[%clk 0:02:47.9]}
10. Bg5 {[%clk 0:02:57.8]} 10... h6 {[%clk 0:02:48.1]} 11. Bh4 {[%clk
0:02:58.1]} 11... g5 {[%clk 0:02:48.7]} 12. Nd2 {[%clk 0:02:57.9]} 12... Nf4
{[%clk 0:02:44.7]} 13. exf4 {[%clk 0:02:54.7]} 13... gxh4 {[%clk 0:02:44.9]} 14.
Bf3 {[%clk 0:02:55.3]} 14... Qc8 {[%clk 0:02:37.3]} 15. Bxb7 {[%clk 0:02:52]}
15... Qxb7 {[%clk 0:02:37.3]} 16. Nd5 {[%clk 0:02:52.9]} 16... e6 {[%clk
0:02:25.4]} 17. Ne7+ {[%clk 0:02:50.9]} 17... Kh8 {[%clk 0:02:24.9]} 18. f5
{[%clk 0:02:51.8]} 18... h3 {[%clk 0:02:05.7]} 19. d5 {[%clk 0:02:46.5]} 19...
exd5 {[%clk 0:01:46.9]} 20. cxd5 {[%clk 0:02:35.1]} 20... Nf6 {[%clk 0:01:36.5]}
21. Ne4 {[%clk 0:02:21.3]} 21... Nxe4 {[%clk 0:01:10.8]} 22. Qxe4 {[%clk
0:02:18.5]} 22... Rae8 {[%clk 0:01:10.9]} 23. Qh4 {[%clk 0:02:01.7]} 23... Rxe7
{[%clk 0:01:00.6]} 24. Qxe7 {[%clk 0:02:00.2]} 24... Qxd5 {[%clk 0:01:01.5]} 25.
f3 {[%clk 0:01:22.8]} 25... Rg8 {[%clk 0:00:29]} 26. g4 {[%clk 0:00:45.8]} 26...
Qd2 {[%clk 0:00:20.2]} 27. Rf2 {[%clk 0:00:44.7]} 27... Bd4 {[%clk 0:00:19.7]}
28. Rf1 {[%clk 0:00:36.3]} 28... Bxf2+ {[%clk 0:00:18.4]} 29. Rxf2 {[%clk
0:00:36.4]} 29... Qc1+ {[%clk 0:00:18.3]} 30. Rf1 {[%clk 0:00:36]} 30... Qxb2
{[%clk 0:00:18.7]} 31. Rf2 {[%clk 0:00:30.8]} 31... Qb1+ {[%clk 0:00:19.1]} 32.
Rf1 {[%clk 0:00:29.3]} 32... Qxa2 {[%clk 0:00:19.1]} 33. Qf6+ {[%clk 0:00:28.3]}
33... Kh7 {[%clk 0:00:17.4]} 34. Rf2 {[%clk 0:00:27.6]} 34... Qd5 {[%clk
0:00:17.1]} 35. Re2 {[%clk 0:00:21.2]} 35... Qxf3 {[%clk 0:00:10]} 36. Qxf7+
{[%clk 0:00:06.4]} 36... Rg7 {[%clk 0:00:09.6]} 37. Qe7 {[%clk 0:00:02]} 37...
Qxg4+ {[%clk 0:00:07.9]} 38. Kf1 {[%clk 0:00:01.4]} 38... Qg1# {[%clk
0:00:07.3]} 0-1

[Event "*** SCC Grand Prix: Titled Tuesday Blitz"]
[Site "Chess.com"]
[Date "2020.09.08"]
[Round "7"]
[White "KuzubovYuriy"]
[Black "Sibelephant"]
[Result "1-0"]
[WhiteElo "2926"]
[BlackElo "3108"]
[TimeControl "180+1"]
[EndTime "11:18:59 PDT"]
[Termination "KuzubovYuriy won by checkmate"]

1. d4 {[%clk 0:03:00.9]} 1... d5 {[%clk 0:02:58.9]} 2. c4 {[%clk 0:03:00.3]}
2... c6 {[%clk 0:02:59.4]} 3. Nf3 {[%clk 0:02:59.9]} 3... Nf6 {[%clk 0:02:59.9]}
4. Nc3 {[%clk 0:03:00.1]} 4... e6 {[%clk 0:03:00]} 5. e3 {[%clk 0:02:56.5]} 5...
Ne4 {[%clk 0:02:59.3]} 6. Bd3 {[%clk 0:02:52.3]} 6... f5 {[%clk 0:02:59]} 7. Ne5
{[%clk 0:02:49.7]} 7... Qf6 {[%clk 0:02:58.6]} 8. O-O {[%clk 0:02:47]} 8... Bd6
{[%clk 0:02:58.2]} 9. f4 {[%clk 0:02:46.8]} 9... O-O {[%clk 0:02:58.1]} 10. Bd2
{[%clk 0:02:44.7]} 10... Kh8 {[%clk 0:02:36.9]} 11. Be1 {[%clk 0:02:30.8]} 11...
Nd7 {[%clk 0:02:35.2]} 12. Qh5 {[%clk 0:02:24]} 12... g6 {[%clk 0:02:29.6]} 13.
Qh3 {[%clk 0:02:21]} 13... Qg7 {[%clk 0:02:08.8]} 14. Bxe4 {[%clk 0:01:58.6]}
14... fxe4 {[%clk 0:02:04.1]} 15. Bh4 {[%clk 0:01:44.7]} 15... Nf6 {[%clk
0:01:58.1]} 16. c5 {[%clk 0:01:38.5]} 16... Bc7 {[%clk 0:01:36.4]} 17. b4 {[%clk
0:01:37.5]} 17... Bd7 {[%clk 0:01:30.1]} 18. a4 {[%clk 0:01:35.3]} 18... a6
{[%clk 0:01:17.3]} 19. Rab1 {[%clk 0:01:33.1]} 19... Ng8 {[%clk 0:01:13.2]} 20.
Bg5 {[%clk 0:01:09.5]} 20... Rf5 {[%clk 0:01:09.1]} 21. Ne2 {[%clk 0:00:55.1]}
21... h6 {[%clk 0:00:55.8]} 22. g4 {[%clk 0:00:42.6]} 22... Rff8 {[%clk
0:00:53.4]} 23. Nxd7 {[%clk 0:00:21.7]} 23... Qxd7 {[%clk 0:00:53]} 24. Bxh6
{[%clk 0:00:21.9]} 24... Qh7 {[%clk 0:00:52.2]} 25. g5 {[%clk 0:00:22]} 25...
Nxh6 {[%clk 0:00:52.5]} 26. gxh6 {[%clk 0:00:20.8]} 26... Kg8 {[%clk 0:00:38.9]}
27. Qxe6+ {[%clk 0:00:20]} 27... Rf7 {[%clk 0:00:39.4]} 28. Ng3 {[%clk
0:00:17.8]} 28... Qxh6 {[%clk 0:00:38.7]} 29. Rb2 {[%clk 0:00:17.7]} 29... Rf8
{[%clk 0:00:34.6]} 30. Rg2 {[%clk 0:00:16.1]} 30... Kh7 {[%clk 0:00:35]} 31. b5
{[%clk 0:00:15]} 31... axb5 {[%clk 0:00:32.9]} 32. axb5 {[%clk 0:00:14.9]} 32...
Rf6 {[%clk 0:00:20.5]} 33. Qg4 {[%clk 0:00:14.3]} 33... R8f7 {[%clk 0:00:13.3]}
34. bxc6 {[%clk 0:00:13.8]} 34... bxc6 {[%clk 0:00:13.2]} 35. Rb1 {[%clk
0:00:14.2]} 35... Ba5 {[%clk 0:00:10.1]} 36. Ra2 {[%clk 0:00:11.6]} 36... Bd8
{[%clk 0:00:08.1]} 37. Ra8 {[%clk 0:00:10.4]} 37... Bc7 {[%clk 0:00:08.4]} 38.
Qc8 {[%clk 0:00:09.6]} 38... Qg7 {[%clk 0:00:07.1]} 39. Rb7 {[%clk 0:00:09.5]}
39... Kh6 {[%clk 0:00:06]} 40. Qh3# {[%clk 0:00:08.9]} 1-0